bitfinex-derivatives/quotes_BTCF0:USTF0_20250729
["timestamp","ask_amount","ask_price","bid_price","bid_amount"]
[1753775393143,0.85382462,119180.0,119170.0,1.3467547]
[1753775395645,0.85482462,119180.0,119170.0,1.3467547]
[1753775396046,0.85382462,119180.0,119170.0,1.3467547]
[1753775396844,0.85386462,119180.0,119170.0,1.3467547]
[1753775397343,0.85382462,119180.0,119170.0,1.3467547]
[1753775398049,0.85482462,119180.0,119170.0,1.3467547]
[1753775398644,0.85386462,119180.0,119170.0,1.3467547]
[1753775398851,0.86290462,119180.0,119170.0,1.3467547]
[1753775399243,0.87583462,119180.0,119170.0,1.3467547]
[1753775400546,0.85486462,119180.0,119170.0,1.3467547]
[1753775400744,0.85382462,119180.0,119170.0,1.3467547]
[1753775401143,0.04833,119180.0,119170.0,1.3467547]
[1753775403343,0.37581553,119180.0,119170.0,1.3467547]
[1753775405644,0.04833,119180.0,119170.0,1.3467547]
[1753775406244,0.37581553,119180.0,119170.0,1.3467547]
[1753775407145,0.37081553,119180.0,119170.0,1.3467547]
[1753775407347,0.37281553,119180.0,119170.0,1.3467547]
[1753775408352,0.36981553,119180.0,119170.0,1.3467547]
[1753775409152,0.36981553,119180.0,119170.0,0.6399947]
[1753775409352,0.36981553,119180.0,119170.0,1.3458747]
[1753775410751,0.3213287,119180.0,119170.0,1.3458747]
[1753775411854,0.04233,119180.0,119170.0,1.3458747]
[1753775412057,0.3213287,119180.0,119170.0,1.3458747]
[1753775413663,1.10816839,119180.0,119170.0,0.4030147]
[1753775413856,0.98816839,119180.0,119170.0,1.3507247]
[1753775414054,0.82034779,119180.0,119170.0,1.3507247]
[1753775414258,0.98816839,119180.0,119170.0,1.3507247]
[1753775414958,0.98816839,119180.0,119170.0,0.6452447]
[1753775415153,0.98816839,119180.0,119170.0,1.3506447]
[1753775415858,1.10816839,119180.0,119170.0,0.47741]
[1753775416054,1.10816839,119180.0,119170.0,1.350603]
[1753775416753,0.98816839,119180.0,119170.0,1.350603]
[1753775416954,0.98816839,119180.0,119170.0,0.645243]
[1753775417154,0.98816839,119180.0,119170.0,1.350603]
[1753775417361,0.70916969,119180.0,119170.0,1.350603]
[1753775417558,0.98816839,119180.0,119170.0,1.350603]
[1753775419563,0.82034779,119180.0,119170.0,1.350603]
[1753775419765,0.98816679,119180.0,119170.0,1.350603]
[1753775420363,1.09816679,119180.0,119170.0,0.403013]
[1753775420667,0.98816679,119180.0,119170.0,1.350443]
[1753775422266,0.70916809,119180.0,119170.0,1.350443]
[1753775422566,0.98816679,119180.0,119170.0,1.350443]
[1753775422758,1.09816679,119180.0,119170.0,1.42555991]
[1753775423764,1.09816679,119180.0,119170.0,0.72035991]
[1753775424059,0.65134909,119180.0,119170.0,1.42531991]
[1753775424263,1.11816679,119180.0,119170.0,0.72035991]
[1753775424463,0.95034779,119180.0,119170.0,1.350123]
[1753775424657,1.11816699,119180.0,119170.0,1.350123]
[1753775425155,0.94034779,119180.0,119170.0,1.350123]
[1753775425865,1.10816709,119180.0,119170.0,1.350123]
[1753775426664,0.94034779,119180.0,119170.0,1.350123]
[1753775426861,1.10816709,119180.0,119170.0,1.350123]
[1753775427266,1.10816709,119180.0,119170.0,1.349963]
[1753775427870,0.94034779,119180.0,119170.0,1.349963]
[1753775428767,0.82034779,119180.0,119170.0,1.349963]
[1753775429272,0.93034779,119180.0,119170.0,1.349963]
[1753775430062,0.82034779,119180.0,119170.0,1.349763]
[1753775430463,0.79933779,119180.0,119170.0,0.72048652]
[1753775430656,0.1806394,119210.0,119200.0,0.3229709]
[1753775430857,1.09545479,119210.0,119200.0,1.3466209]
[1753775431068,0.92667779,119210.0,119200.0,1.3466209]
[1753775431268,0.97270779,119210.0,119200.0,1.3466209]
[1753775431471,1.14148479,119210.0,119200.0,1.3466209]
[1753775431764,1.42048349,119210.0,119200.0,1.35848449]
[1753775431965,1.42648349,119210.0,119200.0,1.35848449]
[1753775432869,1.14748479,119210.0,119200.0,1.35848449]
[1753775433073,0.97970779,119210.0,119200.0,1.35848449]
[1753775433372,1.15148469,119210.0,119200.0,1.35848449]
[1753775433570,0.98370779,119210.0,119200.0,1.35848449]
[1753775433770,1.15148469,119210.0,119200.0,1.35848449]
[1753775434572,0.98370779,119210.0,119200.0,1.35848449]
[1753775435576,0.98370779,119210.0,119200.0,1.42409031]
[1753775436578,0.98270779,119210.0,119200.0,1.42409031]
[1753775436879,0.60800909,119210.0,119200.0,1.42409031]
[1753775437080,0.91577779,119210.0,119200.0,1.42409031]
[1753775437974,0.92381779,119210.0,119200.0,1.42409031]
[1753775438177,0.91781779,119210.0,119200.0,1.42409031]
[1753775438487,0.88500779,119210.0,119200.0,1.42409031]
[1753775438671,0.88500779,119210.0,119200.0,1.44269235]
[1753775438873,0.008,119210.0,119200.0,1.51793587]
[1753775439075,0.2869987,119210.0,119200.0,1.51793587]
[1753775439372,0.2829987,119210.0,119200.0,1.44269235]
[1753775439571,0.2859987,119210.0,119200.0,1.44269235]
[1753775440279,0.2859987,119210.0,119200.0,1.54762972]
[1753775440683,0.2859987,119210.0,119200.0,1.44269235]
[1753775441380,0.007,119210.0,119200.0,1.44269235]
[1753775441583,0.2859987,119210.0,119200.0,1.51776293]
[1753775442781,0.2859987,119210.0,119200.0,1.44269235]
[1753775443582,0.2859987,119210.0,119200.0,1.51771551]
[1753775444295,0.2859987,119210.0,119200.0,1.51675551]
[1753775445395,0.2859987,119210.0,119200.0,1.51671551]
[1753775445795,0.2859987,119210.0,119200.0,1.51663551]
[1753775445994,0.2859987,119210.0,119200.0,1.44161235]
[1753775446591,0.007,119210.0,119200.0,1.44161235]
[1753775446894,0.2859987,119210.0,119200.0,1.44161235]
[1753775447593,0.2859987,119210.0,119200.0,1.51663551]
[1753775448593,0.04263,119220.0,119210.0,0.3547671]
[1753775448796,0.96370779,119220.0,119210.0,0.6373471]
[1753775449198,0.9507743,119220.0,119200.0,0.15249257]
[1753775449397,0.2097695,119190.0,119170.0,0.04819]
[1753775449696,0.446818,119180.0,119170.0,0.04819]
[1753775449892,0.566818,119180.0,119170.0,0.58166826]
[1753775450386,0.566818,119180.0,119170.0,1.28474826]
[1753775450586,0.2878193,119180.0,119170.0,1.28474826]
[1753775451296,0.566818,119180.0,119170.0,1.45258116]
[1753775451599,0.566818,119180.0,119170.0,1.28474826]
[1753775451791,0.2878193,119180.0,119170.0,1.28474826]
[1753775451991,0.566818,119180.0,119170.0,0.58166826]
[1753775452194,0.566818,119180.0,119170.0,1.28474826]
[1753775452396,0.566818,119180.0,119170.0,1.45258116]
[1753775452693,0.2878193,119180.0,119170.0,1.73157986]
[1753775452893,0.1678188,119180.0,119170.0,1.45258116]
[1753775453099,0.1678188,119180.0,119170.0,1.34764379]
[1753775453298,0.2878188,119180.0,119170.0,1.62656249]
[1753775453499,0.2878188,119180.0,119170.0,0.64456379]
[1753775453695,0.2878188,119180.0,119170.0,1.34752379]
[1753775454296,0.2878188,119180.0,119170.0,1.34852379]
[1753775454696,0.2878188,119180.0,119170.0,1.42357843]
[1753775454896,0.2878188,119180.0,119170.0,1.70257713]
[1753775455097,0.2878188,119180.0,119170.0,1.42357843]
[1753775455400,0.2878188,119180.0,119170.0,0.72061853]
[1753775455593,0.2878188,119180.0,119170.0,1.34852389]
[1753775456195,0.2878188,119180.0,119170.0,1.62752259]
[1753775456389,0.2878588,119180.0,119170.0,1.62752259]
[1753775456702,0.1678588,119180.0,119170.0,1.62752259]
[1753775457603,0.2878588,119180.0,119170.0,1.62752259]
[1753775459004,0.2878588,119180.0,119170.0,0.92456259]
[1753775459203,0.2878588,119180.0,119170.0,1.62740259]
[1753775459598,0.5668575,119180.0,119170.0,0.00816089]
[1753775459801,0.2878588,119180.0,119170.0,1.34828369]
[1753775461701,0.2878588,119180.0,119170.0,0.64556369]
[1753775461905,0.5668575,119180.0,119170.0,1.11377379]
[1753775462101,0.5668575,119180.0,119170.0,0.05635089]
[1753775462308,0.9846815,119180.0,119170.0,0.00816089]
[1753775462694,0.9846815,119180.0,119170.0,0.001]
[1753775462897,0.1678329,119170.0,119160.0,0.08215843]
[1753775463101,0.5768316,119170.0,119160.0,0.07505464]
[1753775463306,0.1678469,119160.0,119150.0,0.47996871]
[1753775463604,0.1678469,119160.0,119150.0,0.33306624]
[1753775463605,0.5768456,119160.0,119150.0,0.33306624]
[1753775463807,0.5768456,119160.0,119150.0,0.2580116]
[1753775464402,0.5768456,119160.0,119150.0,0.2160472]
[1753775464598,0.5778456,119160.0,119150.0,0.2160472]
[1753775465210,0.5788456,119160.0,119150.0,0.2160472]
[1753775465502,0.5788456,119160.0,119150.0,0.3823872]
[1753775465708,0.5788456,119160.0,119150.0,0.4504372]
[1753775466007,4e-05,119180.0,119150.0,0.5694316]
[1753775466202,4e-05,119180.0,119150.0,0.6731663]
[1753775466203,0.4468456,119160.0,119150.0,0.6731663]
[1753775466408,0.5568456,119160.0,119150.0,0.6312016]
[1753775466613,0.5568456,119160.0,119150.0,0.63829546]
[1753775466802,0.5568456,119160.0,119150.0,0.68648546]
[1753775467311,0.2778469,119160.0,119150.0,0.96548416]
[1753775467509,0.2778469,119160.0,119150.0,0.68648546]
[1753775467706,0.2778469,119160.0,119150.0,0.96548416]
[1753775468111,0.2788469,119160.0,119150.0,0.96548416]
[1753775468413,0.2808469,119160.0,119150.0,0.68648546]
[1753775468612,0.2808469,119160.0,119150.0,0.96548416]
[1753775468806,0.2808471,119160.0,119150.0,0.96548416]
[1753775469013,0.113,119160.0,119150.0,0.96548416]
[1753775469615,0.2098138,119180.0,119170.0,0.46957]
[1753775469810,0.3298138,119180.0,119170.0,0.46957]
[1753775470702,0.3308138,119180.0,119170.0,0.46957]
[1753775471716,0.3328138,119180.0,119170.0,0.6374029]
[1753775471912,0.3328138,119180.0,119170.0,0.9164016]
[1753775472307,0.3328138,119180.0,119170.0,0.6374029]
[1753775472808,0.3328138,119180.0,119170.0,0.9164016]
[1753775472809,0.2908588,119180.0,119170.0,0.9164016]
[1753775473014,0.12304,119180.0,119170.0,0.9164016]
[1753775473317,0.2908587,119180.0,119170.0,0.9164016]
[1753775475020,0.2908587,119180.0,119170.0,0.6374029]
[1753775475220,0.2908587,119180.0,119170.0,0.9164016]
[1753775476223,0.12304,119180.0,119170.0,0.9164016]
[1753775476623,0.2908589,119180.0,119170.0,0.9164016]
[1753775479324,0.335619,119190.0,119180.0,0.28538]
[1753775479624,0.425619,119190.0,119180.0,1.17827]
[1753775479827,0.7046177,119190.0,119180.0,1.17827]
[1753775480326,0.6626635,119190.0,119180.0,1.3460889]
[1753775480521,0.6646635,119190.0,119180.0,1.3460889]
[1753775480720,0.3856648,119190.0,119180.0,1.3460889]
[1753775480921,0.3876648,119190.0,119180.0,1.3460889]
[1753775481225,0.3876648,119190.0,119180.0,1.3460088]
[1753775481926,0.3876648,119190.0,119180.0,0.6442088]
[1753775482226,0.3876648,119190.0,119180.0,1.3459288]
[1753775482919,0.6666635,119190.0,119180.0,1.3459288]
[1753775483125,0.3876648,119190.0,119180.0,1.3459288]
[1753775483316,0.3877048,119190.0,119180.0,1.3459288]
[1753775483722,0.2789987,119200.0,119180.0,1.429836]
[1753775483916,0.3189987,119200.0,119180.0,1.429836]
[1753775484121,0.4867894,119200.0,119190.0,0.47639]
[1753775486620,0.5287394,119200.0,119170.0,0.04994]
[1753775486823,0.0819487,119200.0,119190.0,0.04994]
[1753775487021,0.5287379,119200.0,119190.0,0.04994]
[1753775487326,0.6675312,119200.0,119190.0,0.04994]
[1753775487527,0.9465299,119200.0,119190.0,0.04994]
[1753775488726,0.6675312,119200.0,119190.0,0.04994]
[1753775488927,0.9810787,119210.0,119190.0,0.3289387]
[1753775489136,1.27868719,119210.0,119190.0,0.3289387]
[1753775489635,1.27868719,119210.0,119190.0,0.04994]
[1753775491129,1.27968719,119210.0,119190.0,0.04994]
[1753775491326,0.2416107,119200.0,119190.0,0.04994]
[1753775491527,0.4135614,119200.0,119190.0,0.04994]
[1753775491725,0.6233041,119200.0,119190.0,0.04994]
[1753775492634,0.9023028,119200.0,119190.0,0.04994]
[1753775492830,0.9033028,119200.0,119190.0,0.04994]
[1753775493136,0.7355122,119200.0,119180.0,0.3289387]
[1753775493338,0.2261568,119190.0,119180.0,0.3289387]
[1753775493534,0.3261568,119190.0,119180.0,0.3289387]
[1753775493734,0.3261568,119190.0,119180.0,0.04994]
[1753775494439,0.7729635,119190.0,119180.0,0.04994]
[1753775494739,0.4939648,119190.0,119180.0,0.04994]
[1753775495333,1.1366926,119190.0,119180.0,0.04994]
[1753775495535,1.1366926,119190.0,119180.0,0.6442087]
[1753775496034,1.1366926,119190.0,119180.0,0.47639]
[1753775496235,1.1366926,119190.0,119180.0,0.40246]
[1753775496637,0.9688846,119190.0,119180.0,0.40246]
[1753775497140,0.9688846,119190.0,119180.0,0.47639]
[1753775497343,0.9688846,119190.0,119180.0,0.7553887]
[1753775497741,0.9688846,119190.0,119180.0,0.47639]
[1753775498041,0.9721846,119190.0,119180.0,0.47639]
[1753775498438,0.9721846,119190.0,119180.0,0.40246]
[1753775500138,0.9721846,119190.0,119180.0,0.47639]
[1753775502439,0.9721846,119190.0,119180.0,0.40246]
[1753775503444,0.1678046,119190.0,119180.0,0.40246]
[1753775503641,0.2678046,119190.0,119180.0,0.47142]
[1753775503842,0.2678046,119190.0,119180.0,0.7504187]
[1753775504134,0.2678046,119190.0,119180.0,0.47142]
[1753775504343,0.2678046,119190.0,119180.0,0.7504187]
[1753775504941,0.2678046,119190.0,119180.0,0.47142]
[1753775505341,0.2678046,119190.0,119180.0,0.7504187]
[1753775505533,1.1374002,119200.0,119180.0,0.7004787]
[1753775505738,1.3951907,119200.0,119190.0,0.04975]
[1753775506346,1.5629827,119200.0,119190.0,0.04975]
[1753775507249,1.58286223,119200.0,119190.0,0.04975]
[1753775507444,1.58386223,119200.0,119190.0,0.04975]
[1753775508754,1.30486353,119200.0,119190.0,0.04975]
[1753775510149,1.58386223,119200.0,119190.0,0.04975]
[1753775510551,1.30486353,119200.0,119190.0,0.04975]
[1753775510751,1.58386223,119200.0,119190.0,0.04975]
[1753775511848,0.7422241,119210.0,119190.0,0.04975]
[1753775512051,1.1831692,119210.0,119190.0,0.3287487]
[1753775512252,0.2097412,119200.0,119190.0,0.3287487]
[1753775512452,0.3197412,119200.0,119190.0,0.3287487]
[1753775516650,0.3197412,119200.0,119190.0,0.4963187]
[1753775516854,0.3197412,119200.0,119190.0,0.6427287]
[1753775517256,0.3197412,119200.0,119190.0,0.7490887]
[1753775518056,0.1258369,119210.0,119190.0,0.7490887]
[1753775518248,0.3336133,119210.0,119200.0,0.3287487]
[1753775518551,0.3336133,119210.0,119200.0,0.04975]
[1753775518752,0.3336133,119210.0,119200.0,0.3287487]
[1753775518953,0.3336133,119210.0,119200.0,0.04975]
[1753775519143,0.3336133,119210.0,119200.0,0.3287487]
[1753775519754,0.3609428,119210.0,119190.0,0.2789987]
[1753775520055,0.3189987,119210.0,119190.0,1.0287087]
[1753775520645,0.04,119210.0,119190.0,0.74971]
[1753775520848,0.3209987,119210.0,119190.0,1.0287087]
[1753775521155,0.3209987,119210.0,119190.0,1.0286287]
[1753775521348,0.3189987,119210.0,119190.0,1.0286287]
[1753775521548,0.3189987,119210.0,119190.0,1.1961987]
[1753775521753,0.3189987,119210.0,119190.0,1.1464487]
[1753775521953,0.4867748,119210.0,119200.0,0.04975]
[1753775522857,0.2077761,119210.0,119200.0,0.04975]
[1753775523158,0.4867748,119210.0,119200.0,0.04975]
[1753775523356,0.4887748,119210.0,119200.0,0.04975]
[1753775523556,0.4887748,119210.0,119200.0,0.74951]
[1753775523957,0.50857952,119210.0,119200.0,0.74951]
[1753775526849,0.50857952,119210.0,119200.0,0.74931]
[1753775527054,0.7729896,119200.0,119190.0,0.04975]
[1753775527254,0.92279432,119200.0,119190.0,0.74927]
[1753775527460,1.20179302,119200.0,119190.0,0.74927]
[1753775528065,1.20179302,119200.0,119190.0,0.04975]
[1753775528357,1.20179302,119200.0,119190.0,0.74927]
[1753775528564,1.28571302,119200.0,119180.0,0.69948]
[1753775528758,1.00671432,119200.0,119180.0,0.82668]
[1753775528965,1.00671432,119200.0,119180.0,1.1056787]
[1753775529359,1.17450452,119200.0,119190.0,0.04975]
[1753775529971,1.17650452,119200.0,119190.0,0.04975]
[1753775530168,1.17650452,119200.0,119190.0,0.3287487]
[1753775530672,1.17650452,119200.0,119190.0,0.04975]
[1753775531267,1.17650452,119200.0,119190.0,0.3287487]
[1753775533569,0.8672684,119210.0,119190.0,0.3287487]
[1753775533772,1.1204258,119210.0,119180.0,0.93818]
[1753775533974,1.1204258,119210.0,119180.0,1.1691387]
[1753775534173,1.1204258,119210.0,119190.0,0.04804]
[1753775534471,0.71308262,119200.0,119190.0,0.04804]
[1753775534667,0.41357302,119200.0,119190.0,0.04804]
[1753775535068,0.44088102,119200.0,119170.0,0.3270387]
[1753775535372,1.1040603,119190.0,119170.0,0.40766]
[1753775535581,1.2560144,119190.0,119170.0,0.23894]
[1753775537478,1.2560144,119190.0,119170.0,0.04804]
[1753775537883,1.4238187,119190.0,119180.0,0.04804]
[1753775538884,1.14482,119190.0,119180.0,0.04804]
[1753775540783,1.14458,119190.0,119180.0,0.04804]
[1753775545385,1.4235787,119190.0,119180.0,0.04804]
[1753775545585,1.44308194,119190.0,119180.0,0.04804]
[1753775545984,1.16408324,119190.0,119180.0,0.04804]
[1753775549485,1.10746194,119190.0,119160.0,1.0256387]
[1753775549688,0.0419569,119180.0,119160.0,0.04804]
[1753775549883,0.54437264,119180.0,119160.0,0.3270387]
[1753775550985,0.54437264,119180.0,119160.0,0.3290387]
[1753775552189,0.54437264,119180.0,119170.0,0.04804]
[1753775552487,0.71219114,119180.0,119170.0,0.04804]
[1753775552687,0.43319244,119180.0,119170.0,0.04804]
[1753775555584,0.43319244,119180.0,119170.0,0.3270387]
[1753775557192,0.43319244,119180.0,119160.0,0.24259]
[1753775557193,0.41850194,119180.0,119150.0,0.3270387]
[1753775557388,0.1561044,119170.0,119160.0,0.04804]
[1753775557584,0.36952924,119170.0,119160.0,0.04804]
[1753775557794,0.45345144,119170.0,119160.0,0.04804]
[1753775558691,0.45345144,119170.0,119160.0,0.21676]
[1753775559197,0.45345144,119170.0,119160.0,0.04804]
[1753775559198,0.73245014,119170.0,119160.0,0.04804]
[1753775559598,0.73245014,119170.0,119160.0,0.05004]
[1753775559599,0.73994562,119170.0,119160.0,0.05004]
[1753775559899,0.2472665,119160.0,119150.0,1.13277]
[1753775560196,0.37676974,119160.0,119150.0,0.001]
[1753775560498,0.2472807,119150.0,119140.0,1.2197087]
[1753775560698,0.37678394,119150.0,119140.0,1.2197087]
[1753775561694,0.37678394,119150.0,119140.0,1.2677487]
[1753775562198,0.44412272,119150.0,119140.0,1.2677487]
[1753775563596,0.39666272,119150.0,119140.0,1.2677487]
[1753775564203,0.39671184,119150.0,119140.0,1.2677487]
[1753775564500,0.37715948,119150.0,119140.0,1.2677487]
[1753775564700,0.1678889,119130.0,119120.0,0.4692487]
[1753775564895,0.29745879,119130.0,119120.0,1.6705047]
[1753775565090,0.32857879,119130.0,119120.0,1.6705047]
[1753775565295,0.32857879,119130.0,119120.0,1.9563747]
[1753775566202,1.82857879,119130.0,119120.0,1.9563747]
[1753775566501,1.83600758,119130.0,119120.0,1.9573747]
[1753775566700,1.83600758,119130.0,119120.0,1.9593747]
[1753775566901,1.83600758,119130.0,119120.0,2.1272777]
[1753775567401,1.83600758,119130.0,119120.0,1.9593747]
[1753775568298,1.83600758,119130.0,119120.0,1.4539987]
[1753775568499,1.83600758,119130.0,119120.0,2.1252777]
[1753775569495,1.83600758,119130.0,119120.0,1.9573747]
[1753775571001,1.83600758,119130.0,119120.0,2.1252777]
[1753775571192,1.83600758,119130.0,119120.0,1.9573747]
[1753775573306,1.83600758,119130.0,119120.0,2.1252777]
[1753775573609,1.83604758,119130.0,119120.0,2.1252777]
[1753775573803,1.83604758,119130.0,119120.0,1.9573747]
[1753775577603,1.88408758,119130.0,119120.0,1.9573747]
[1753775578508,1.83604758,119130.0,119120.0,1.9573747]
[1753775579904,0.2159238,119140.0,119130.0,0.28587]
[1753775580105,0.4457586,119140.0,119130.0,0.7551187]
[1753775580512,0.4457586,119140.0,119130.0,0.47612]
[1753775580706,0.45350294,119140.0,119130.0,0.7551187]
[1753775580907,1.95350294,119140.0,119130.0,0.47612]
[1753775581109,1.95350294,119140.0,119130.0,0.7551187]
[1753775581614,0.45350294,119140.0,119130.0,0.7551187]
[1753775582214,1.95350294,119140.0,119130.0,0.7551187]
[1753775582616,1.95350294,119140.0,119130.0,0.47612]
[1753775582913,1.95350294,119140.0,119130.0,0.7551187]
[1753775585309,1.61774434,119140.0,119130.0,0.7551187]
[1753775585510,0.11,119140.0,119130.0,1.4263836]
[1753775585711,0.06733878,119150.0,119140.0,0.2165648]
[1753775585919,0.2778607,119150.0,119140.0,1.9554547]
[1753775586111,0.2778607,119150.0,119140.0,2.1233295]
[1753775586617,0.11,119150.0,119140.0,2.1233295]
[1753775588006,0.2778607,119150.0,119140.0,2.1233295]
[1753775588712,0.17787167,119150.0,119140.0,2.1233295]
[1753775589014,0.34573237,119150.0,119140.0,2.1233295]
[1753775589205,0.17787167,119150.0,119140.0,2.1233295]
[1753775589517,0.34573227,119150.0,119140.0,2.1233295]
[1753775590717,0.17787167,119150.0,119140.0,2.1233295]
[1753775591318,0.34573237,119150.0,119140.0,2.1233295]
[1753775591519,0.17787167,119150.0,119140.0,2.1233295]
[1753775592918,0.34573227,119150.0,119140.0,2.1233295]
[1753775593426,0.17787167,119150.0,119140.0,2.1233295]
[1753775593622,0.112,119150.0,119140.0,2.1233295]
[1753775597829,0.2798606,119150.0,119140.0,2.1233295]
[1753775598223,0.112,119150.0,119140.0,2.1233295]
[1753775599324,0.2798606,119150.0,119140.0,1.676456]
[1753775599525,0.2798606,119150.0,119140.0,1.9554547]
[1753775600027,0.2798606,119150.0,119140.0,2.1233294]
[1753775601232,0.112,119150.0,119140.0,2.1233294]
[1753775601623,0.2798607,119150.0,119140.0,2.1233294]
[1753775602832,0.2798607,119150.0,119140.0,1.9554547]
[1753775603636,0.2798607,119150.0,119140.0,2.1233295]
[1753775603936,0.58964609,119160.0,119150.0,0.48012]
[1753775604136,0.64964609,119160.0,119150.0,0.7591187]
[1753775604335,0.64964609,119160.0,119150.0,1.2624947]
[1753775605332,0.65164609,119160.0,119150.0,1.2624947]
[1753775606346,0.67104525,119160.0,119150.0,0.983496]
[1753775606645,0.67104525,119160.0,119150.0,1.2624947]
[1753775607539,0.45157525,119160.0,119150.0,1.2624947]
[1753775607937,0.56157525,119160.0,119150.0,1.2624947]
[1753775608744,0.67104525,119160.0,119150.0,1.2624947]
[1753775611243,0.62908055,119160.0,119150.0,1.2624947]
[1753775611443,0.58711795,119160.0,119150.0,1.2624947]
[1753775611845,0.47711795,119160.0,119150.0,1.2624947]
[1753775612244,0.56771879,119160.0,119150.0,1.2624947]
[1753775612636,0.58712824,119160.0,119150.0,1.2624947]
[1753775613144,0.56771879,119160.0,119150.0,1.9577747]
[1753775613344,0.58713234,119160.0,119150.0,1.9577747]
[1753775616051,1.6258793,119170.0,119160.0,0.48012]
[1753775616052,1.80134046,119170.0,119160.0,0.48012]
[1753775616250,1.90134046,119170.0,119160.0,0.48012]
[1753775616644,2.18033916,119170.0,119160.0,0.48012]
[1753775617549,2.24894793,119170.0,119160.0,0.48012]
[1753775618852,2.17934104,119170.0,119160.0,0.68951181]
[1753775621554,2.17934104,119170.0,119160.0,0.48012]
[1753775621756,0.0839092,119180.0,119160.0,0.68951181]
[1753775621956,0.37722431,119170.0,119160.0,0.64243181]
[1753775622156,0.54494599,119170.0,119160.0,1.33715181]
[1753775622554,0.54494599,119170.0,119160.0,1.38423181]
[1753775622762,2.04494599,119170.0,119160.0,1.38423181]
[1753775622946,2.13586568,119170.0,119150.0,0.74176]
[1753775623146,1.71708206,119170.0,119150.0,0.74172]
[1753775623347,2.57955456,119170.0,119160.0,0.20939181]
[1753775623558,2.57955456,119170.0,119160.0,0.46555362]
[1753775623559,2.78894637,119170.0,119160.0,0.46555362]
[1753775623755,2.78894637,119170.0,119160.0,0.20939181]
[1753775624056,2.95645263,119170.0,119150.0,0.20939181]
[1753775624258,0.45452265,119160.0,119150.0,0.20939181]
[1753775624446,0.64845205,119160.0,119150.0,0.20939181]
[1753775624648,0.1678606,119150.0,119140.0,0.04677]
[1753775624851,0.1678747,119140.0,119130.0,1.02066174]
[1753775625050,0.2878747,119140.0,119130.0,1.02066174]
[1753775625349,0.2878747,119140.0,119130.0,1.25913174]
[1753775626649,0.2878747,119140.0,119130.0,1.45575174]
[1753775626849,0.2878747,119140.0,119130.0,1.45675174]
[1753775627857,0.30715786,119140.0,119130.0,1.45675174]
[1753775635567,0.13928316,119140.0,119130.0,1.96012774]
[1753775635758,0.30715786,119140.0,119130.0,1.96012774]
[1753775641365,0.2878747,119140.0,119130.0,1.96012774]
[1753775641567,0.30695471,119140.0,119130.0,1.96012774]
[1753775647767,0.30695471,119140.0,119130.0,1.680796]
[1753775647969,0.30695471,119140.0,119130.0,1.96012774]
[1753775652769,0.30695471,119140.0,119130.0,1.45675174]
[1753775653678,0.30695471,119140.0,119130.0,1.96012774]
[1753775654779,0.30695471,119140.0,119130.0,2.30906944]
[1753775656277,0.30695471,119140.0,119130.0,2.09964496]
[1753775657976,0.30695471,119140.0,119130.0,2.09780496]
[1753775658678,0.30695471,119140.0,119130.0,2.09772496]
[1753775659276,0.30695471,119140.0,119130.0,2.30714944]
[1753775659475,0.30695481,119140.0,119130.0,2.30714944]
[1753775659876,0.30695481,119140.0,119130.0,2.30706944]
[1753775660080,0.13908001,119140.0,119130.0,2.30706944]
[1753775661078,0.30695471,119140.0,119130.0,2.30706944]
[1753775662080,0.13908001,119140.0,119130.0,2.30706944]
[1753775663578,0.30695471,119140.0,119130.0,2.30694944]
[1753775665282,0.30695471,119140.0,119130.0,1.678476]
[1753775665479,0.30695471,119140.0,119130.0,2.30674944]
[1753775666780,0.30695471,119140.0,119130.0,1.40504496]
[1753775666984,0.30695471,119140.0,119130.0,2.09724496]
[1753775670386,0.30699471,119140.0,119130.0,2.09724496]
[1753775671784,0.30699471,119140.0,119130.0,1.40504496]
[1753775671984,0.51641919,119140.0,119130.0,0.45377448]
[1753775672287,0.51641919,119140.0,119130.0,0.68772448]
[1753775672790,0.30699471,119140.0,119130.0,0.75766669]
[1753775674285,0.44723749,119150.0,119130.0,0.75766669]
[1753775674488,0.1678747,119140.0,119130.0,0.71089669]
[1753775674688,0.1978747,119140.0,119130.0,0.71089669]
[1753775675098,0.1978747,119140.0,119130.0,0.75859669]
[1753775675287,0.1978747,119140.0,119130.0,0.75759669]
[1753775675485,1.6978747,119140.0,119130.0,0.76059669]
[1753775675889,1.6978747,119140.0,119130.0,0.47823]
[1753775676090,1.6978747,119140.0,119130.0,0.76059669]
[1753775676492,1.76400533,119140.0,119130.0,0.48123]
[1753775676693,1.76400533,119140.0,119130.0,0.76059669]
[1753775678293,1.76404533,119140.0,119130.0,0.76059669]
[1753775680496,1.76404533,119140.0,119130.0,0.75759669]
[1753775682201,1.76404533,119140.0,119130.0,0.47823]
[1753775682400,1.76404533,119140.0,119130.0,0.75759669]
[1753775683093,1.76404533,119140.0,119130.0,0.47823]
[1753775683397,1.76404533,119140.0,119130.0,0.75759669]
[1753775684393,1.76404533,119140.0,119130.0,0.47823]
[1753775684893,1.76404533,119140.0,119130.0,0.75759669]
[1753775686497,0.28256192,119140.0,119130.0,0.75759669]
[1753775687100,1.78256192,119140.0,119130.0,0.75759669]
[1753775688708,1.78256192,119140.0,119130.0,0.52364669]
[1753775688904,1.78256192,119140.0,119130.0,0.0477]
[1753775689205,1.78256192,119140.0,119130.0,0.32706669]
[1753775689206,2.47368192,119140.0,119130.0,0.32706669]
[1753775690607,2.47368192,119140.0,119130.0,0.0477]
[1753775690807,2.47368192,119140.0,119130.0,0.32706669]
[1753775692606,2.47368192,119140.0,119130.0,0.0477]
[1753775692900,2.47368192,119140.0,119130.0,0.32706669]
[1753775693303,2.47368192,119140.0,119130.0,0.48876669]
[1753775694810,2.68320498,119140.0,119130.0,0.41892306]
[1753775695408,2.47368192,119140.0,119130.0,0.41892306]
[1753775695908,2.47368192,119140.0,119130.0,0.89190612]
[1753775696107,2.47332192,119140.0,119130.0,0.89190612]
[1753775696812,2.47332192,119140.0,119130.0,0.75214967]
[1753775697503,0.97332192,119140.0,119130.0,0.75214967]
[1753775698607,0.28256192,119140.0,119130.0,0.75214967]
[1753775698913,0.97320192,119140.0,119130.0,0.75214967]
[1753775702714,0.97320192,119140.0,119130.0,1.25552567]
[1753775711623,0.97320192,119140.0,119130.0,0.976236]
[1753775711924,0.97320192,119140.0,119130.0,1.25552567]
[1753775713725,0.95468533,119140.0,119130.0,0.75214967]
[1753775713925,0.97281349,119140.0,119130.0,0.75214967]
[1753775714725,0.97281349,119140.0,119130.0,1.25552567]
[1753775717631,0.97281349,119140.0,119130.0,0.976236]
[1753775717831,0.97281349,119140.0,119130.0,1.25552567]
[1753775718529,0.81972,119140.0,119130.0,0.97818567]
[1753775718719,0.9875947,119140.0,119130.0,1.19110449]
[1753775719121,0.9875947,119140.0,119130.0,0.981606]
[1753775719429,0.9875947,119140.0,119130.0,1.19110449]
[1753775719623,0.9875947,119140.0,119130.0,0.981606]